Cogmind - Beta 13 @@@ ROGUE MODE // 2024.04.03 @ 22:15:21 Player: AlStar Result: Core destroyed Performance ------------- Evolutions (5) 2500 Regions Visited (9) 1800 Robots Destroyed (97) 485 Value Destroyed (3417) 3417 Prototype IDs (3) 60 Alien Tech Used (0) 0 Bonus (753) 753 TOTAL SCORE: 9015 Bonus ------- High Alert Combat Kills 773 Friendly Fire -20 Cogmind --------- Core Integrity 0/1000 Matter 300/300 Energy 110/140 System Corruption 10% Temperature Critical (550) Movement Hovering (55) Location -5/Upper Caves Parts ------- > --- POWER (3) -------- Light Deuterium Engine Backup Power VII > --- PROPULSION (4) --- Antigrav System Antigrav System Antigrav System Gyrokinetic Inverter > --- UTILITY (7) ------ Weight Redist. System Enhanced Optical Array Improved Sensor Array Advanced Signal Interpreter Advanced Terrain Scan Processor Improved Light Armor Plating Improved Thermal Shield > --- WEAPON (3) ------- Advanced Plasma Cannon Gauss Cannon > --- INVENTORY (5) ---- Makeshift Hacking Suite Improved Component Analysis Suite Heavy Beamcaster Coil Gun Mass Driver Peak State ------------ > --- POWER ------------ Light Deuterium Engine Backup Power VII > --- PROPULSION ------- Antigrav System Antigrav System Antigrav System Gyrokinetic Inverter > --- UTILITY ---------- Weight Redist. System Enhanced Optical Array Improved Sensor Array Advanced Signal Interpreter Advanced Terrain Scan Processor Improved Light Armor Plating Improved Thermal Shield > --- WEAPON ----------- Advanced Plasma Cannon Gauss Cannon > --- INVENTORY -------- Armored Medium Treads Improved Component Analysis Suite Coil Gun Mass Driver [Rating: 74] Favorites ----------- Power Light Nuclear Core Engine Ion Engine Power Core Light Nuclear Core Propulsion Wheel Treads Light Treads Leg Improved VSS Leg Wheel Wheel Hover Unit Antigrav System Utility Small Storage Unit Device Improved Heat Sink Storage Small Storage Unit Processor Enhanced Optical Array Protection Hardened Medium Armor Plating Weapon Heavy Particle Cannon Energy Gun Medium Laser Energy Cannon Heavy Particle Cannon Ballistic Gun Heavy Assault Rifle Ballistic Cannon Assault Cannon Launcher Scatter Rocket Array Impact Weapon Powered Hammer Slashing Weapon Katana Special Melee Weapon Datajack Build | -11 -10 -10 -9 -8 -7 -6 -5 -5 -5 ------- Run | Yrd Mat Min Mat Mat Fac Fac Fac Upp Upp Slots Evolved 10 | . . . 2 2 2 2 2 . . Power 2 | . . . . 1 . . 1 . . Propulsion 2 | . . . 1 . 1 . . . . Utility 5 | . . . 1 . 1 2 1 . . Weapon 1 | . . . . 1 . . . . . Parts Attached 104 | 7 1 2 8 14 8 36 23 4 1 Power 19 | 1 . . 1 3 1 7 5 1 . Engine 7 | 1 . . . 2 . 3 . 1 . Core 12 | . . . 1 1 1 4 5 . . Reactor . | . . . . . . . . . . Propulsion 25 | 2 . . 2 4 2 9 5 . 1 Treads 5 | . . . 2 . 2 1 . . . Leg 6 | . . . . . . 5 1 . . Wheel 8 | 2 . . . 4 . 2 . . . Hover 6 | . . . . . . 1 4 . 1 Flight . | . . . . . . . . . . Utility 33 | 1 1 . 2 3 1 14 9 2 . Device 17 | . 1 . . 1 . 8 6 1 . Storage 4 | 1 . . . 1 . 2 . . . Processor 4 | . . . 1 . . . 3 . . Hackware . | . . . . . . . . . . Protection 8 | . . . 1 1 1 4 . 1 . Artifact . | . . . . . . . . . . Weapon 27 | 3 . 2 3 4 4 6 4 1 . Energy Gun 8 | 3 . 1 1 . . 2 1 . . Energy Cannon 4 | . . . . 1 1 . 1 1 . Ballistic Gun 1 | . . 1 . . . . . . . Ballistic Cannon 4 | . . . . 1 1 . 2 . . Launcher 6 | . . . 2 1 . 3 . . . Special Weapon . | . . . . . . . . . . Impact Weapon 1 | . . . . . . 1 . . . Slashing Weapon 2 | . . . . . 2 . . . . Piercing Weapon . | . . . . . . . . . . Special Melee Weapon 1 | . . . . 1 . . . . . Unidentified Prototypes 2 | . . . . . . 2 . . . Parts Lost 50 | . . . 2 11 2 26 9 . . Power 11 | . . . . 2 1 6 2 . . Propulsion 14 | . . . 2 3 1 6 2 . . Utility 16 | . . . . 3 . 10 3 . . Weapon 9 | . . . . 3 . 4 2 . . Highest Loss Streak 18 | . . . 2 5 2 18 8 . . To Critical Strikes . | . . . . . . . . . . Average Slot Usage (%) 74 | . 95 100 65 68 78 86 38 68 85 Engine 4 | . 14 14 2 3 7 4 . 1 5 Core 5 | . . . 8 12 6 4 7 5 5 Treads 2 | . . . 7 4 . 3 . . . Leg 2 | . . . . . . 5 . . . Wheel 11 | . 28 28 6 10 19 14 . . . Hover 2 | . . . . . . . 5 17 20 Device 12 | . 9 14 4 3 7 16 12 13 17 Storage 6 | . 14 14 11 10 7 6 . . . Processor 3 | . . . 11 3 . . 3 17 17 Protection 5 | . . . 2 8 7 9 2 2 5 Energy Gun 4 | . 28 24 4 . . 1 3 . . Energy Cannon 2 | . . . . 4 7 4 . 2 5 Ballistic Cannon 2 | . . . . 1 7 2 1 5 5 Launcher 2 | . . . 3 5 . 3 . . . Impact Weapon 1 | . . . . . . 5 . . . Naked Turns 33 | . . . . . . 33 . . . Heaviest Build 65 | 14 16 18 24 39 58 65 45 31 31 Greatest Support 50 | 26 26 26 40 40 36 46 33 39 50 Greatest Overweight (x) 7 | . . . 3 7 2 2 2 . . Average Overweight (x) . | . . . . 1 1 1 . . . Largest Inventory Capacity 8 | 8 8 8 8 8 8 8 5 5 5 Average Capacity 7 | 6 8 8 8 8 8 7 5 5 5 Most Carried 8 | 4 8 8 8 8 8 8 5 5 5 Average Carried 6 | 1 6 7 7 5 6 7 3 4 4 Final Capacity 8 | 8 8 8 8 8 8 5 5 5 5 Final Carried 8 | 2 7 8 7 8 8 5 4 4 5 Class Distribution -------------------- 52% | Mutant 34% | Scavenger-Mutant 7% | Scavenger-Scout 5% | Scout Dominant Class ---------------- Mutant | -10/Materials Mutant | -10/Mines Mutant | -9/Materials Scavenger-Mutant | -8/Materials Scavenger-Mutant | -7/Factory Scavenger-Mutant | -6/Factory Mutant | -5/Factory Scout | -5/Upper Caves Scavenger-Scout | -5/Upper Caves Resources | -11 -10 -10 -9 -8 -7 -6 -5 -5 -5 ----------- Run | Yrd Mat Min Mat Mat Fac Fac Fac Upp Upp Matter Collected 2051 | 222 46 32 169 197 138 589 544 88 26 Remotely . | . . . . . . . . . . Salvage Created 2466 | . 46 46 231 521 188 1132 297 5 . Parts 162 | . 1 1 25 34 9 74 18 . . Haulers Intercepted 1 | . . . . 1 . . . . . Recyclers Shooed 3 | . . . 1 . . 1 1 . . Parts Field Recycled . | . . . . . . . . . . Retrieved Matter . | . . . . . . . . . . Parts Self-Destructed . | . . . . . . . . . . Prevented . | . . . . . . . . . . Kills | -11 -10 -10 -9 -8 -7 -6 -5 -5 -5 ------- Run | Yrd Mat Min Mat Mat Fac Fac Fac Upp Upp Combat Hostiles Destroyed 68 | . 1 1 9 8 4 37 8 . . Melee 1 | . . . . . 1 . . . . Guns 10 | . 1 1 2 . . 1 5 . . Cannons 15 | . . . . 5 3 5 2 . . AOE 40 | . . . 7 3 . 30 . . . Classes Destroyed 15 | . 1 . 3 5 1 3 2 . . Worker 12 | . . . . 3 . 8 1 . . Builder 10 | . . . 4 2 . 4 . . . Tunneler 1 | . . . . . . . 1 . . Hauler 1 | . . . . 1 . . . . . Recycler 2 | . . . . 2 . . . . . Operator 2 | . . . . 1 . 1 . . . Watcher 1 | . . . . . . . 1 . . Swarmer 20 | . . . 3 . . 11 6 . . Grunt 22 | . 1 1 2 2 1 15 . . . Brawler 2 | . . . . . . 2 . . . Duelist 2 | . . . . 1 . 1 . . . Protector 1 | . . . . . . 1 . . . Sentry 12 | . . . 4 5 2 1 . . . Hunter 5 | . . . . . 1 4 . . . Programmer 3 | . . . . . . 1 2 . . Decomposer 1 | . . . . . . . . 1 . Thug 1 | . . . . . . 1 . . . Best Kill Streak 23 | . 1 1 7 8 1 23 5 . . Combat Bots Only 15 | . 1 1 4 5 1 15 5 . . Max Kills in Single Turn 8 | . 1 1 3 2 1 8 1 1 . Gunslinging . | . . . . . . . . . . Exploded 4 | . . . 2 1 . 4 . . . Melee 1 | . . . . . 1 . . . . Uniques/NPCs Destroyed . | . . . . . . . . . . Combat | -11 -10 -10 -9 -8 -7 -6 -5 -5 -5 -------- Run | Yrd Mat Min Mat Mat Fac Fac Fac Upp Upp Hostile Shots Fired 553 | . 6 16 37 30 63 269 132 . . Missed 167 | . 3 6 11 10 27 81 29 . . Damage Taken 7774 | . 45 131 371 1182 397 3502 1946 . 200 Core 2228 | . 15 37 140 247 53 713 823 . 200 Absorbed by Shields 113 | . . . . . . 96 17 . . Ignored by Resistances 55 | . . . . . . . 55 . . Core Remaining (%) 67 | 100 . 79 65 55 92 16 . . . Volleys Fired 183 | . 9 8 24 32 12 54 43 1 . Largest 3 | . 2 2 2 2 3 2 2 1 . Hottest 167 | . 100 100 79 119 167 124 150 48 . Shots Fired 275 | . 18 16 38 42 27 81 52 1 . Gun 106 | . 18 16 28 . . 14 30 . . Cannon 122 | . . . . 22 27 50 22 1 . Launcher 47 | . . . 10 20 . 17 . . . Special . | . . . . . . . . . . Kinetic 70 | . . . 14 3 15 24 13 1 . Thermal 154 | . 18 16 14 19 12 40 35 . . Explosive 47 | . . . 10 20 . 17 . . . Electromagnetic 4 | . . . . . . . 4 . . Robot Hit Streak 15 | . 4 6 5 13 13 15 9 2 . Robot Miss Streak 22 | . 4 2 6 2 5 22 3 . . Penetration Max . | . . . . . . . . . . Secondary Targets . | . . . . . . . . . . Shots Hit Robots 193 | . 10 11 22 38 20 57 34 1 . Core Hits 225 | . 3 3 16 30 8 151 13 1 . Critical Kills . | . . . . . . . . . . Critical Parts Destroyed . | . . . . . . . . . . Critical Strikes 22 | . 4 1 1 1 1 5 9 . . Burn 15 | . 4 1 1 . . 1 8 . . Blast 6 | . . . . 1 . 4 1 . . Sever 1 | . . . . . 1 . . . . Melee Attacks 15 | . . . . 3 5 7 . . . Impact 7 | . . . . . . 7 . . . Slashing 5 | . . . . . 5 . . . . Piercing . | . . . . . . . . . . Sneak Attacks 4 | . . . . 3 1 . . . . Combat Hostiles 1 | . . . . . 1 . . . . Follow-up Attacks . | . . . . . . . . . . Damage Inflicted 9747 | . 139 136 933 1103 542 5941 923 30 . Guns 1102 | . 139 136 229 . . 180 418 . . Cannons 2101 | . . . . 450 388 749 484 30 . Explosions 6172 | . . . 704 653 . 4815 . . . Melee 351 | . . . . . 154 197 . . . Ramming 21 | . . . . . . . 21 . . Kinetic 1013 | . . . 100 75 238 349 221 30 . Thermal 2895 | . 139 136 129 375 150 1319 647 . . Explosive 5433 | . . . 704 653 . 4076 . . . Electromagnetic 34 | . . . . . . . 34 . . Impact 197 | . . . . . . 197 . . . Slashing 154 | . . . . . 154 . . . . Piercing . | . . . . . . . . . . Highest Corruption 15 | . . . . 15 . 3 10 10 10 Average Corruption 6 | . . . . 13 . 1 8 10 10 Corruption Purged . | . . . . . . . . . . Corruption Blocked . | . . . . . . . . . . Effects 39 | . . . . 8 . 8 10 6 7 Message Errors 12 | . . . . 3 . 2 4 . 3 Matter Fused 6 | . . . . . . 2 1 2 1 Heat Flow Errors 4 | . . . . . . 1 1 . 2 Energy Discharges 1 | . . . . 1 . . . . . Parts Rejected 4 | . . . . . . 1 3 . . Parts Fused 1 | . . . . . . 1 . . . Data Loss (minor) 6 | . . . . 2 . . . 3 1 Data Loss (major) 3 | . . . . . . 1 1 1 . Misfires 1 | . . . . 1 . . . . . Alerts 1 | . . . . 1 . . . . . Overload Shots . | . . . . . . . . . . Overflow Damage 280 | . . . 13 34 6 207 20 . . Projectiles 37 | . . . . . 6 11 20 . . Explosions 152 | . . . 13 34 . 105 . . . Melee 91 | . . . . . . 91 . . . Knockbacks 18 | . . . . 1 2 12 3 . . Impact 3 | . . . . . . 3 . . . Kinetic 15 | . . . . 1 2 9 3 . . Secondary . | . . . . . . . . . . Self-Inflicted Damage 573 | . . . 12 268 . 285 8 . . Shots 21 | . . . 1 9 . 11 . . . Rammed 1 | . . . . . . . 1 . . Targets Rammed 6 | . . . . . . . 6 . . Kicked 5 | . . . . . . . 5 . . Crushed . | . . . . . . . . . . Highest Temperature 572 | . 318 216 162 223 306 161 306 5 572 Average Temperature 93 | . 151 114 67 70 102 18 99 4 146 Received Heat Transfer 1178 | . 24 72 114 117 132 530 189 . . Effects 9 | . . . . . . . . . 9 Shutdowns 2 | . . . . . . . . . 2 Energy Bleed 1 | . . . . . . . . . 1 Interference 3 | . . . . . . . . . 3 Short Circuit 1 | . . . . . . . . . 1 Damage (minor) 1 | . . . . . . . . . 1 Damage (core) 1 | . . . . . . . . . 1 Siege Activations . | . . . . . . . . . . Robots Corrupted . | . . . . . . . . . . Combat Hostiles . | . . . . . . . . . . Parts Fried . | . . . . . . . . . . Impact Corruptions 5 | . . . . . . 5 . . . Robots Melted 1 | . . . . . . . 1 . . Combat Hostiles 1 | . . . . . . . 1 . . Parts Melted 13 | . 2 . 1 . 1 1 8 . . Heat Transferred 6360 | . 703 481 407 555 222 1842 2150 . . Parts Sabotaged . | . . . . . . . . . . Parts Stolen . | . . . . . . . . . . Parts Stripped . | . . . . . . . . . . Power Chain Reactions . | . . . . . . . . . . Alert | -11 -10 -10 -9 -8 -7 -6 -5 -5 -5 ------- Run | Yrd Mat Min Mat Mat Fac Fac Fac Upp Upp Peak Influence 1280 | . 20 52 398 488 397 1280 750 . . Initial 604 | . . 7 20 167 221 193 604 . . Average 406 | . 12 36 162 344 311 510 675 . . Maximum Alert Level 4 | . . . 1 2 1 4 3 . . Low Security (%) 28 | 100 100 100 67 11 . 15 . . . Level 1 29 | . . . 32 48 100 36 . . . Level 2 27 | . . . . 40 . 31 52 . . Level 3 11 | . . . . . . 6 47 . . Level 4 3 | . . . . . . 9 . . . Level 5 . | . . . . . . . . . . High Security . | . . . . . . . . . . Max Security . | . . . . . . . . . . Squads Dispatched 13 | . 1 . 1 . 1 6 4 . . Investigation 3 | . 1 . . . 1 . 1 . . Extermination 2 | . . . . . . 1 1 . . Reinforcement 6 | . . . 1 . . 3 2 . . Assault 2 | . . . . . . 2 . . . Garrison . | . . . . . . . . . . Intercept . | . . . . . . . . . . Searches Triggered . | . . . . . . . . . . Construction Impeded 2 | . . . 1 . . 1 . . . Haulers Reinforced 1 | . . . . . . 1 . . . Active Scanning Responses . | . . . . . . . . . . Cargo Convoy Interrupts . | . . . . . . . . . . Stealth | -11 -10 -10 -9 -8 -7 -6 -5 -5 -5 --------- Run | Yrd Mat Min Mat Mat Fac Fac Fac Upp Upp Distress Signals 2 | . . . . 1 . . 1 . . Communications Jammed . | . . . . . . . . . . Distress Signals . | . . . . . . . . . . Times Spotted 104 | . 5 3 10 10 5 48 23 . . Peak Tracking Total 11 | . 3 2 4 5 2 11 6 . . Tactical Retreats 12 | . 1 . . . 1 4 6 . . Traps | -11 -10 -10 -9 -8 -7 -6 -5 -5 -5 ------- Run | Yrd Mat Min Mat Mat Fac Fac Fac Upp Upp Traps Triggered 3 | . 1 . . . . 1 1 . . Indirectly . | . . . . . . . . . . Trap Hack Attempts . | . . . . . . . . . . Triggered . | . . . . . . . . . . Disarmed . | . . . . . . . . . . Reprogrammed . | . . . . . . . . . . Reused . | . . . . . . . . . . Traps Extracted . | . . . . . . . . . . Installed . | . . . . . . . . . . Triggered . | . . . . . . . . . . Machines | -11 -10 -10 -9 -8 -7 -6 -5 -5 -5 ---------- Run | Yrd Mat Min Mat Mat Fac Fac Fac Upp Upp Machines Disabled 29 | . . . 1 . 1 26 1 . . Max in Single Turn 15 | . . . 1 . 1 15 1 . . Machines Repaired . | . . . . . . . . . . Machines Dismantled . | . . . . . . . . . . Machines Sabotaged . | . . . . . . . . . . Overloaded Fab Kills . | . . . . . . . . . . Hacking | -11 -10 -10 -9 -8 -7 -6 -5 -5 -5 --------- Run | Yrd Mat Min Mat Mat Fac Fac Fac Upp Upp Machines Accessed 17 | . 2 . . 2 1 7 5 . . Terminals 11 | . 2 . . 1 1 6 1 . . Fabricators 2 | . . . . . . 1 1 . . Repair Stations . | . . . . . . . . . . Recycling Units 1 | . . . . . . . 1 . . Scanalyzers 2 | . . . . 1 . . 1 . . Garrison Access 1 | . . . . . . . 1 . . Total Hacks 31 | . 3 . . 6 3 9 10 . . Successful 12 | . . . . 3 1 3 5 . . Failed 19 | . 3 . . 3 2 6 5 . . Catastrophic 6 | . 1 . . . . 3 2 . . Database Lockouts . | . . . . . . . . . . Manual 4 | . 2 . . 1 . 1 . . . Terminals 21 | . 3 . . 5 3 8 2 . . Fabricators 2 | . . . . . . 1 1 . . Repair Stations . | . . . . . . . . . . Recycling Units 4 | . . . . . . . 4 . . Scanalyzers 3 | . . . . 1 . . 2 . . Garrison Access 1 | . . . . . . . 1 . . Terminal Hacks 5 | . . . . 1 1 2 1 . . Open DSF 3 | . . . . . 1 2 . . . Locate Traps 1 | . . . . 1 . . . . . Zone Layout 1 | . . . . . . . 1 . . Fabricator Hacks 1 | . . . . . . 1 . . . Build 1 | . . . . . . 1 . . . Repair Station Hacks . | . . . . . . . . . . Recycling Unit Hacks 4 | . . . . . . . 4 . . Recycle Component 1 | . . . . . . . 1 . . Process 1 | . . . . . . . 1 . . Report Inventory 1 | . . . . . . . 1 . . Retrieve Matter 1 | . . . . . . . 1 . . Scanalyzer 1 | . . . . 1 . . . . . Insert Component 1 | . . . . 1 . . . . . Garrison Access Hacks . | . . . . . . . . . . Unauthorized Hacks 1 | . . . . 1 . . . . . Terminals 1 | . . . . 1 . . . . . Botnet 1 | . . . . 1 . . . . . Fabricators . | . . . . . . . . . . Repair Stations . | . . . . . . . . . . Recycling Units . | . . . . . . . . . . Scanalyzers . | . . . . . . . . . . Garrison Access . | . . . . . . . . . . Data Cores Recovered . | . . . . . . . . . . Used . | . . . . . . . . . . Hacking Detections 13 | . 2 . . 1 1 5 4 . . Full Trace Events 2 | . . . . . 1 . 1 . . Feedback Events . | . . . . . . . . . . Feedback Blocked . | . . . . . . . . . . Robot Schematics Acquired . | . . . . . . . . . . Robots Built . | . . . . . . . . . . Authchips . | . . . . . . . . . . Time . | . . . . . . . . . . Total Robot Build Rating . | . . . . . . . . . . Part Schematics Acquired . | . . . . . . . . . . Parts Built 1 | . . . . . . 1 . . . Authchips . | . . . . . . . . . . Time 53 | . . . . . . 53 . . . Total Part Build Rating 6 | . . . . . . 6 . . . Parts Repaired . | . . . . . . . . . . Time . | . . . . . . . . . . Parts Recycled 1 | . . . . . . . 1 . . Recycled Matter 45 | . . . . . . . 45 . . Retrieved Matter 45 | . . . . . . . 45 . . Retrieved Components . | . . . . . . . . . . Parts Scanalyzed . | . . . . . . . . . . Part Schematics Acquired . | . . . . . . . . . . Parts Damaged . | . . . . . . . . . . Bothacking | -11 -10 -10 -9 -8 -7 -6 -5 -5 -5 ------------ Run | Yrd Mat Min Mat Mat Fac Fac Fac Upp Upp Used RIF Installer . | . . . . . . . . . . Robots Hacked 2 | . . . . 2 . . . . . Non-combat 2 | . . . . 2 . . . . . Combat . | . . . . . . . . . . Robot Hacks Applied 2 | . . . . 2 . . . . . parse_system 1 | . . . . 1 . . . . . find_recycling 1 | . . . . 1 . . . . . Relay Couplers Released . | . . . . . . . . . . Fabnet Peak Effective % . | . . . . . . . . . . Robots Rewired . | . . . . . . . . . . Allies Hacked . | . . . . . . . . . . Hacks Repelled . | . . . . . . . . . . Allies | -11 -10 -10 -9 -8 -7 -6 -5 -5 -5 -------- Run | Yrd Mat Min Mat Mat Fac Fac Fac Upp Upp Total Allies . | . . . . . . . . . . Largest Group . | . . . . . . . . . . Highest-Rated Group . | . . . . . . . . . . Highest-Rated Ally . | . . . . . . . . . . Total Orders . | . . . . . . . . . . Ally Attacks . | . . . . . . . . . . Total Damage . | . . . . . . . . . . Kills . | . . . . . . . . . . Allies Corrupted . | . . . . . . . . . . Allies Melted . | . . . . . . . . . . Intel | -11 -10 -10 -9 -8 -7 -6 -5 -5 -5 ------- Run | Yrd Mat Min Mat Mat Fac Fac Fac Upp Upp Robot Analysis Total . | . . . . . . . . . . Derelict Logs Recovered 2 | . . . . . . . . 2 . Drone Launches . | . . . . . . . . . . Drone Recoveries . | . . . . . . . . . . Exploration | -11 -10 -10 -9 -8 -7 -6 -5 -5 -5 ------------- Run | Yrd Mat Min Mat Mat Fac Fac Fac Upp Upp Turns Passed 3494 | 47 125 283 271 369 199 1263 559 212 166 Spaces Moved 2966 | 36 102 268 136 195 122 882 561 350 314 Core 242 | 1 . . 19 4 . 58 160 . . Treads 119 | . . . 66 53 . . . . . Legs 169 | . . . . . . 162 7 . . Wheels 1290 | 35 102 268 51 138 122 574 . . . Hover 1146 | . . . . . . 88 394 350 314 Flight . | . . . . . . . . . . Fastest Speed 50 | 50 90 90 90 95 101 50 50 55 50 Average Speed 89 | 87 90 90 139 132 102 108 70 55 51 Slowest Speed 400 | 90 90 90 200 400 120 270 170 55 55 Overloaded Moves . | . . . . . . . . . . Propulsion Burnouts . | . . . . . . . . . . Robots Hopped . | . . . . . . . . . . Cave-ins Triggered 2 | . . . . 2 . . . . . Exploration Rate (%) 33 | 4 40 76 17 21 2 35 19 73 49 Regions Visited 9 Branch Regions 3 Pre-discovered Areas 1 | . . . . . . . . 1 . Known Exits Taken 2 | . . . . . . . 1 1 . Unknown Exits Taken 7 | 1 1 1 1 1 1 1 . . . Scrap Searched 8 | . . 1 . . . . . 4 3 Spaces Dug 78 | . . . . . . 78 . . . Terrain Destroyed 449 | . . . 85 104 . 255 5 . . Melee . | . . . . . . . . . . Projectile 8 | . . . . 3 . . 5 . . AOE 441 | . . . 85 101 . 255 . . . Terrain Rammed . | . . . . . . . . . . Walls Destroyed . | . . . . . . . . . . Machines Disabled . | . . . . . . . . . . Actions | -11 -10 -10 -9 -8 -7 -6 -5 -5 -5 --------- Run | Yrd Mat Min Mat Mat Fac Fac Fac Upp Upp Total 3510 | 50 117 295 182 264 162 1082 672 367 319 Wait 91 | . . 7 . . 7 63 3 11 . Move 2957 | 35 101 267 135 194 121 881 560 349 314 Hop . | . . . . . . . . . . Pick Up 93 | 8 6 5 7 17 6 22 17 2 3 Fast Attach 25 | . . 2 1 1 2 13 4 2 . Attach 64 | 6 1 . 5 13 3 14 19 2 1 Detach 6 | . . . 1 . . 1 4 . . Swap 15 | 1 . . 2 . 3 9 . . . Drop 43 | . . 6 7 4 3 18 4 . 1 Fire 183 | . 9 8 24 32 12 54 43 1 . Melee 15 | . . . . 3 5 7 . . . Ram 1 | . . . . . . . 1 . . Kick 5 | . . . . . . . 5 . . Crush . | . . . . . . . . . . Escape Stasis 12 | . . . . . . . 12 . . Rewire . | . . . . . . . . . . Trap . | . . . . . . . . . . Miscellaneous . | . . . . . . . . . . Route ------- -11/Scrapyard -10/Materials (discovered 3 exits: [*Mat] / [*Min x2]) -10/Mines (discovered 2 exits: [*Mat x2]) -9/Materials -8/Materials (discovered 2 exits: *Fac / [*Sto]) -7/Factory -6/Factory -5/Factory -5/Upper Caves -5/Upper Caves (discovered 1 exit: *Fac) History --------- Turn | Location | Event 28 | -11/Scrapyard | Discovered new exit (range 15) 48 | -11/Scrapyard | Entered Materials 65 | -10/Materials | Discovered new exit (range 12) 130 | -10/Materials | Discovered new exit (range 10) 164 | -10/Materials | Discovered new exit (range 12) 173 | -10/Materials | Entered Mines 294 | -10/Mines | Received a Rocket Launcher from a helpful Derelict 317 | -10/Mines | Build established: Mutant 353 | -10/Mines | Discovered new exit (range 11) 363 | -10/Mines | Joined a pair of Derelicts in attacking an 0b10 outpost 449 | -10/Mines | Discovered new exit (range 9) 456 | -10/Mines | Entered Materials 456 | -9/Materials | Evolved 2 slots: Propulsion x1, Utility x1 680 | -9/Materials | Discovered new exit (range 16) 727 | -9/Materials | Entered another Materials area 727 | -8/Materials | Evolved 2 slots: Power x1, Weapon x1 867 | -8/Materials | Crushed by falling debris 902 | -8/Materials | Lost 4 parts (1p1n2u) 934 | -8/Materials | Crushed by falling debris 934 | -8/Materials | System corruption reached 10% 966 | -8/Materials | Lost 5 parts (1p1n1u2w) 985 | -8/Materials | Discovered new exit (range 3) 1087 | -8/Materials | Discovered new exit (range 4) 1096 | -8/Materials | Entered Factory 1096 | -7/Factory | Evolved 2 slots: Propulsion x1, Utility x1 1167 | -7/Factory | Build established: Scavenger-Mutant 1265 | -7/Factory | Discovered new exit (range 16) 1295 | -7/Factory | Entered another Factory area 1295 | -6/Factory | Evolved 2 slots: Utility x2 1314 | -6/Factory | Found Prototype Launcher 1531 | -6/Factory | Fabricated Tesla Rifle (x1) 1741 | -6/Factory | Identified Scatter Rocket Array 1995 | -6/Factory | First assault squad dispatched 2230 | -6/Factory | P-60 Hacker assimilated allied XT-76N(g) 2409 | -6/Factory | Build established: Mutant 2469 | -6/Factory | Core integrity fell below 50% 2472 | -6/Factory | Spotted B-75 Beast 2482 | -6/Factory | Core integrity fell below 20% 2489 | -6/Factory | Destroyed 15 combat bots 2501 | -6/Factory | Lost 18 parts (1p5n8u4w) 2534 | -6/Factory | Discovered new exit (range 16) 2558 | -6/Factory | Entered another Factory area 2558 | -5/Factory | Evolved 2 slots: Power x1, Utility x1 2923 | -5/Factory | Lost 8 parts (2p1n3u2w) 2962 | -5/Factory | Core integrity fell below 50% 2981 | -5/Factory | System corruption reached 10% 3056 | -5/Factory | Core integrity fell below 20% 3112 | -5/Factory | Discovered new exit (range 10) 3116 | -5/Factory | Identified exit to Upper Caves 3117 | -5/Factory | Entered Upper Caves 3229 | -5/Upper Caves | Learned location of Armory (-3) 3236 | -5/Upper Caves | Learned Factory terminal intel 3323 | -5/Upper Caves | Discovered new exit (range 12) 3329 | -5/Upper Caves | Identified exit to Upper Caves 3329 | -5/Upper Caves | Entered another Upper Caves area 3349 | -5/Upper Caves | Discovered new exit (range 8) 3352 | -5/Upper Caves | Identified exit to Factory 3496 | -5/Upper Caves | Core destroyed Last Messages --------------- 03413_ Acquired Mak. Hacking Suite. 03419_ Searching scrap... 03419_ Found Seismic Detector. 03419_ Found Imp. Weapon Shielding. 03419_ Found Field Propulsion Drive. 03419_ Found Imp. Hardlight Generator. 03419_ Found 34 Matter. 03446_ System corrupted: Heat flow error (+233). 03466_ Overheating: Energy bleed (-22). 03468_ F%1 ESC CBCWI75JCEF4BID1BNHBB4YM 03486_ Overheating: System interference. 03486_ Adv. Terrain Scan Processor temporarily disabled. 03486_ Enh. Optical Array temporarily disabled. 03493_ System corrupted: Heat flow error (+259). 03494_ Power failure, Lgt. Deuterium Engine shutdown. 03494_ Overheating: Antigrav System damaged (-7). 03495_ Power failure, Backup Power VII shutdown. 03495_ Antigrav System broken. 03495_ Overheating: Short circuit. 03496_ Overheating: Core damaged (-200). Map ----- +----------------------------------------------------+ | ???????????## ###### ### ##?## ##?## | | ????????????### ##### ##?## ##??####???#### | | #?????????# ## #???###??# #?????????# | | #???####### ##?? ??# ###???????? | | ##### ## #??? ## #????????? | | ???????# ##??? #????????? | | ???????# #???? #??????????? | | ????#### ## #### ##???# #???????????? | | ????# ### ##??## ##?## #????????????? | | ????## ### ##???## ### #????????????# | | ?????## #### #????# #????????????# | | #??# #### #?#### #????????? | | #?# # ### ## ##????? | | ##### ### ##????? ??? | | " " #???# ### ##?# ###??????????? | | " #???# ## ##??# ###????????? | | "" ##???# ## ## #??## #????????? | | #????# ## #### #?## ##????????? | | "" #### ## ### ??# ### ######?????????? | | "" ##?## #?# ## ##??????????????? | | " #???####?# # ##???????????????? | | ##????????## ### ##????????????????? | | #####??????????###### ##?????????????????? | | ???????????????????## ##??????????????????? | | ## ????????????????##### ##???????????????????? | | ###?????????????????# @ #????????????????????? | | ?????????????? ## #????????????????????? | | ?????????? ??# # #????????????????????? | | ??????????? ?? # ??? # ???????????????????? | | ??????????????? #?#??? ??????????????????? | | ????????????? ??????? ?????????????????? | | ???????????? ????????? # ????????????????? | | ????????????????????? # ?# #???????????????? | | ??????????????????????###?? ##???????????????? | | ??????????????????????????? ##????????????????? | | ??????????????????????????? ##?????????????????? | | ??????????????????????????? ##??????????????????? | | ??????????????????????????? ##???????????????????? | | ?????????????????????????????????????????????????? | | ?????????????????????????????????????????????????? | | ?????????????????????????????????????????????????? | | ?????????????????????????????????????????????????? | | ?????????????????????????????????????????????????? | | ?????????????????????????????????????????????????? | | ?????????????????????????????????????????????????? | | ?????????????????????????????????????????????????? | | ?????????????????????????????????????????????????? | | ?????????????????????????????????????????????????? | | ?????????????????????????????????????????????????? | | ?????????????????????????????????????????????????? | +----------------------------------------------------+ Best States ------------- Heat Dissipation 70 Energy Generation 34 Energy Capacity 525 Matter Stores 300 Matter Capacity 450 Sight Range 22 Robot Scan Range 16 Terrain Scan Density 210 ECM Strength 1 Additional Mass Support 6 Armor Coverage 825 Resistance: TH 25 Evasion (%) 57 Targeting Accuracy 5 Recoil Reduction 2 Kinecelleration 30 Item Schematics ----------------- None Robot Schematics ------------------ None Fabricated ------------ Tesla Rifle | x1 | -6/Factory | Preloaded Alien Tech Used ----------------- None Achievements -------------- None Challenges ------------ None Game ------ Seed StoragePhasingBoomstick Manual? 0 Play Time 01:34:12 Cumulative 92.3 hours Start 2024.04.03 @ 20:41:25 End 2024.04.03 @ 22:15:21 Sessions 1 Manual Loads 0 Difficulty Rogue Special Mode None Game No. 62 Rogue 62 Adventurer 0 Explorer 0 Win Type - Total 0 Types 0/0/0/0/0/0/0/0/0 Lore% 33 Gallery% 48 Achievement% 37 Wizard Run 0 Options --------- Layout 1 ASCII 0 Keyboard 0 Movement Numpad Keybinds 0 Fullscreen 0 Font 20/SmallcapsGlow Map View 64x42 Zoom Use 0% Tactical HUD 1 Map Filters NONE Filters NONE Steam 1 RUN: 1f6316f7-2da6-4397-9b2b-1fba2a0ab34f